[Event "Titled Tuesday Blitz April 05 Early 2022"]
[White "Ciolacu, Alessia-Mihaela"]
[Black "Dovbnia, Nikita"]
[WhiteFideId "1252640"]
[BlackFideId "54104599"]
[WhiteElo "1804"]
[BlackElo "2111"]
[Result "1-0"]
[Round "07"]
[TimeControl "180+1"]
[Date "2022.04.05"]
[WhiteClock "0:00:38"]
[BlackClock "0:00:18"]

1. b3 {[%clk 0:03:00]}  Nf6 {[%clk 0:02:56]} 2. Bb2 {[%clk 0:03:00]}  g6 {[%clk 0:02:57]} 3. Bxf6 {[%clk 0:02:59]}  exf6 {[%clk 0:02:58]} 4. c4 {[%clk 0:02:59]}  Bg7 {[%clk 0:02:58]} 5. Nc3 {[%clk 0:03:00]}  O-O {[%clk 0:02:59]} 6. d4 {[%clk 0:02:54]}  d6 {[%clk 0:02:57]} 7. e3 {[%clk 0:02:53]}  f5 {[%clk 0:02:56]} 8. Bd3 {[%clk 0:02:52]}  c5 {[%clk 0:02:47]} 9. Nge2 {[%clk 0:02:50]}  Nc6 {[%clk 0:02:46]} 10. d5 {[%clk 0:02:47]}  Ne5 {[%clk 0:02:47]} 11. Bc2 {[%clk 0:02:34]}  a6 {[%clk 0:02:44]} 12. O-O {[%clk 0:02:31]}  Bd7 {[%clk 0:02:43]} 13. a4 {[%clk 0:02:26]}  b5 {[%clk 0:02:28]} 14. axb5 {[%clk 0:02:25]}  axb5 {[%clk 0:02:29]} 15. Rxa8 {[%clk 0:02:24]}  Qxa8 {[%clk 0:02:29]} 16. Nxb5 {[%clk 0:02:12]}  Bxb5 {[%clk 0:02:25]} 17. cxb5 {[%clk 0:02:13]}  Qb7 {[%clk 0:02:23]} 18. Nc3 {[%clk 0:01:55]}  Nd7 {[%clk 0:01:53]} 19. Qd3 {[%clk 0:01:53]}  Bxc3 {[%clk 0:01:52]} 20. Qxc3 {[%clk 0:01:54]}  Qxb5 {[%clk 0:01:52]} 21. Ra1 {[%clk 0:01:50]}  Nb6 {[%clk 0:01:39]} 22. Qd2 {[%clk 0:01:36]}  Rb8 {[%clk 0:01:32]} 23. h4 {[%clk 0:01:34]}  c4 {[%clk 0:01:32]} 24. bxc4 {[%clk 0:01:26]}  Nxc4 {[%clk 0:01:32]} 25. Qd4 {[%clk 0:01:21]}  Qb2 {[%clk 0:01:16]} 26. Qa7 {[%clk 0:00:58]}  Rb6 {[%clk 0:00:33]} 27. Bd3 {[%clk 0:00:41]}  Ne5 {[%clk 0:00:27]} 28. Rb1 {[%clk 0:00:40]}  Qxb1+ {[%clk 0:00:24]} 29. Bxb1 {[%clk 0:00:40]}  Rxb1+ {[%clk 0:00:24]} 30. Kh2 {[%clk 0:00:40]}  Rd1 {[%clk 0:00:24]} 31. Qb8+ {[%clk 0:00:40]}  Kg7 {[%clk 0:00:22]} 32. Qxd6 {[%clk 0:00:41]}  Ng4+ {[%clk 0:00:23]} 33. Kg3 {[%clk 0:00:40]}  Rf1 {[%clk 0:00:21]} 34. f3 {[%clk 0:00:38]}  Nf6 {[%clk 0:00:21]} 35. Qe5 {[%clk 0:00:37]}  Rd1 {[%clk 0:00:19]} 36. e4 {[%clk 0:00:37]}  fxe4 {[%clk 0:00:18]} 37. fxe4 {[%clk 0:00:38]} 1-0


[Site "https://www.chess.com"]

[Event "Titled Tuesday Blitz April 05 Early 2022"]
[White "Cori T., Deysi"]
[Black "Hansen, Eric"]
[WhiteFideId "3801934"]
[BlackFideId "2606771"]
[WhiteElo "2606"]
[BlackElo "2907"]
[Result "1-0"]
[Round "07"]
[TimeControl "180+1"]
[Date "2022.04.05"]
[WhiteClock "0:00:23"]
[BlackClock "0:00:01"]

1. d4 {[%clk 0:03:00]}  Nf6 {[%clk 0:02:53]} 2. Nf3 {[%clk 0:03:00]}  g6 {[%clk 0:02:48]} 3. g3 {[%clk 0:03:00]}  Bg7 {[%clk 0:02:48]} 4. Bg2 {[%clk 0:03:01]}  d5 {[%clk 0:02:49]} 5. O-O {[%clk 0:03:01]}  O-O {[%clk 0:02:50]} 6. Ne5 {[%clk 0:03:01]}  c6 {[%clk 0:02:48]} 7. Nd2 {[%clk 0:02:56]}  Ng4 {[%clk 0:02:43]} 8. Ndf3 {[%clk 0:02:50]}  Nxe5 {[%clk 0:02:41]} 9. Nxe5 {[%clk 0:02:49]}  Nd7 {[%clk 0:02:42]} 10. Bf4 {[%clk 0:02:44]}  Nb6 {[%clk 0:02:40]} 11. a4 {[%clk 0:02:38]}  a5 {[%clk 0:02:34]} 12. c3 {[%clk 0:02:38]}  Bf5 {[%clk 0:02:26]} 13. Qb3 {[%clk 0:02:37]}  Ra7 {[%clk 0:02:25]} 14. Rad1 {[%clk 0:02:32]}  Be6 {[%clk 0:02:10]} 15. Nd3 {[%clk 0:02:26]}  Nc4 {[%clk 0:02:06]} 16. Rfe1 {[%clk 0:02:21]}  Bc8 {[%clk 0:01:57]} 17. e4 {[%clk 0:02:18]}  e6 {[%clk 0:01:57]} 18. Qc2 {[%clk 0:02:08]}  h6 {[%clk 0:01:49]} 19. h4 {[%clk 0:02:05]}  b6 {[%clk 0:01:49]} 20. Qc1 {[%clk 0:01:56]}  Kh7 {[%clk 0:01:48]} 21. e5 {[%clk 0:01:44]}  b5 {[%clk 0:01:47]} 22. Nc5 {[%clk 0:01:33]}  bxa4 {[%clk 0:01:44]} 23. Qc2 {[%clk 0:01:29]}  Nb6 {[%clk 0:01:40]} 24. Ra1 {[%clk 0:01:26]}  Ba6 {[%clk 0:01:38]} 25. Bf1 {[%clk 0:01:23]}  Bxf1 {[%clk 0:01:37]} 26. Kxf1 {[%clk 0:01:24]}  Qe7 {[%clk 0:01:29]} 27. h5 {[%clk 0:01:23]}  Rb8 {[%clk 0:01:25]} 28. Kg2 {[%clk 0:01:23]}  Nd7 {[%clk 0:01:19]} 29. Nxa4 {[%clk 0:01:20]}  c5 {[%clk 0:00:59]} 30. hxg6+ {[%clk 0:01:09]}  fxg6 {[%clk 0:01:00]} 31. Rh1 {[%clk 0:01:08]}  cxd4 {[%clk 0:00:46]} 32. cxd4 {[%clk 0:01:09]}  Nf8 {[%clk 0:00:37]} 33. Rh4 {[%clk 0:00:38]}  Rc7 {[%clk 0:00:25]} 34. Nc3 {[%clk 0:00:37]}  Rcb7 {[%clk 0:00:23]} 35. Na4 {[%clk 0:00:37]}  Rc7 {[%clk 0:00:22]} 36. Nc5 {[%clk 0:00:36]}  Rb4 {[%clk 0:00:21]} 37. Bxh6 {[%clk 0:00:34]}  Bxh6 {[%clk 0:00:13]} 38. Rah1 {[%clk 0:00:33]}  Kg7 {[%clk 0:00:07]} 39. Rxh6 {[%clk 0:00:31]}  Rxd4 {[%clk 0:00:06]} 40. Rh7+ {[%clk 0:00:28]}  Nxh7 {[%clk 0:00:05]} 41. Nxe6+ {[%clk 0:00:28]}  Kh8 {[%clk 0:00:02]} 42. Nxc7 {[%clk 0:00:24]}  Rc4 {[%clk 0:00:01]} 43. Nxd5 {[%clk 0:00:23]} 1-0


[Site "https://www.chess.com"]

[Event "Titled Tuesday Blitz April 05 Early 2022"]
[White "Devaev, Alexander"]
[Black "Arabidze, Meri"]
[WhiteFideId "4169395"]
[BlackFideId "13604040"]
[WhiteElo "2185"]
[BlackElo "2335"]
[Result "0-1"]
[Round "07"]
[TimeControl "180+1"]
[Date "2022.04.05"]
[WhiteClock "0:00:04"]
[BlackClock "0:00:32"]

1. d4 {[%clk 0:02:33]}  Nf6 {[%clk 0:02:59]} 2. c4 {[%clk 0:02:29]}  e6 {[%clk 0:02:59]} 3. Nf3 {[%clk 0:02:29]}  d5 {[%clk 0:02:59]} 4. Nc3 {[%clk 0:02:30]}  Nbd7 {[%clk 0:02:59]} 5. cxd5 {[%clk 0:02:27]}  exd5 {[%clk 0:02:59]} 6. Bg5 {[%clk 0:02:28]}  c6 {[%clk 0:02:58]} 7. e3 {[%clk 0:02:28]}  Be7 {[%clk 0:02:59]} 8. Bd3 {[%clk 0:02:29]}  O-O {[%clk 0:02:57]} 9. h3 {[%clk 0:02:29]}  Re8 {[%clk 0:02:56]} 10. O-O {[%clk 0:02:28]}  Ne4 {[%clk 0:02:53]} 11. Bf4 {[%clk 0:02:28]}  f5 {[%clk 0:02:50]} 12. Qc2 {[%clk 0:02:28]}  Bf6 {[%clk 0:02:48]} 13. Rae1 {[%clk 0:02:27]}  g5 {[%clk 0:02:44]} 14. Bh2 {[%clk 0:02:27]}  h5 {[%clk 0:02:37]} 15. Nd2 {[%clk 0:02:16]}  Nb6 {[%clk 0:02:09]} 16. b3 {[%clk 0:01:30]}  Be6 {[%clk 0:02:07]} 17. f3 {[%clk 0:01:30]}  Nxc3 {[%clk 0:02:02]} 18. Qxc3 {[%clk 0:01:30]}  Qd7 {[%clk 0:02:00]} 19. Kh1 {[%clk 0:01:24]}  Qg7 {[%clk 0:01:57]} 20. Be5 {[%clk 0:00:42]}  Nd7 {[%clk 0:01:54]} 21. f4 {[%clk 0:00:42]}  g4 {[%clk 0:01:51]} 22. Kh2 {[%clk 0:00:34]}  Kf7 {[%clk 0:01:49]} 23. b4 {[%clk 0:00:29]}  Rg8 {[%clk 0:01:46]} 24. Rg1 {[%clk 0:00:27]}  a6 {[%clk 0:01:34]} 25. Qc2 {[%clk 0:00:27]}  Qg6 {[%clk 0:01:28]} 26. a4 {[%clk 0:00:27]}  Be7 {[%clk 0:01:11]} 27. b5 {[%clk 0:00:27]}  axb5 {[%clk 0:01:09]} 28. axb5 {[%clk 0:00:28]}  c5 {[%clk 0:01:08]} 29. dxc5 {[%clk 0:00:25]}  Nxc5 {[%clk 0:01:09]} 30. Nb3 {[%clk 0:00:20]}  Ra2 {[%clk 0:00:53]} 31. Qb1 {[%clk 0:00:18]}  gxh3 {[%clk 0:00:49]} 32. Qxa2 {[%clk 0:00:14]}  Qg3+ {[%clk 0:00:46]} 33. Kh1 {[%clk 0:00:15]}  Nxd3 {[%clk 0:00:46]} 34. Nd4 {[%clk 0:00:09]}  Nf2+ {[%clk 0:00:42]} 35. Qxf2 {[%clk 0:00:09]}  Qxf2 {[%clk 0:00:43]} 36. gxh3 {[%clk 0:00:08]}  Rxg1+ {[%clk 0:00:39]} 37. Rxg1 {[%clk 0:00:09]}  Bf6 {[%clk 0:00:39]} 38. Rg2 {[%clk 0:00:07]}  Qf1+ {[%clk 0:00:38]} 39. Kh2 {[%clk 0:00:07]}  Bxe5 {[%clk 0:00:38]} 40. fxe5 {[%clk 0:00:08]}  f4 {[%clk 0:00:37]} 41. Rg5 {[%clk 0:00:04]}  fxe3 {[%clk 0:00:32]} 0-1


[Site "https://www.chess.com"]

[Event "Titled Tuesday Blitz April 05 Early 2022"]
[White "Dilmukhametov, Artur"]
[Black "Winkels, Marcel"]
[WhiteFideId "24179922"]
[BlackFideId "1003887"]
[WhiteElo "2244"]
[BlackElo "1900"]
[Result "0-1"]
[Round "07"]
[TimeControl "180+1"]
[Date "2022.04.05"]
[WhiteClock "0:02:10"]
[BlackClock "0:01:43"]

1. d4 {[%clk 0:03:00]}  Nf6 {[%clk 0:02:57]} 2. Nc3 {[%clk 0:03:00]}  d5 {[%clk 0:02:54]} 3. Bf4 {[%clk 0:02:59]}  Bf5 {[%clk 0:02:50]} 4. f3 {[%clk 0:02:57]}  e6 {[%clk 0:02:49]} 5. g4 {[%clk 0:02:56]}  Bg6 {[%clk 0:02:49]} 6. h4 {[%clk 0:02:54]}  h5 {[%clk 0:02:49]} 7. g5 {[%clk 0:02:50]}  Nfd7 {[%clk 0:02:47]} 8. e3 {[%clk 0:02:50]}  a6 {[%clk 0:02:43]} 9. Bd3 {[%clk 0:02:49]}  Bxd3 {[%clk 0:02:41]} 10. Qxd3 {[%clk 0:02:49]}  g6 {[%clk 0:02:36]} 11. Nh3 {[%clk 0:02:48]}  Bd6 {[%clk 0:02:28]} 12. O-O-O {[%clk 0:02:45]}  Nc6 {[%clk 0:02:22]} 13. Bxd6 {[%clk 0:02:43]}  cxd6 {[%clk 0:02:22]} 14. e4 {[%clk 0:02:43]}  dxe4 {[%clk 0:02:20]} 15. fxe4 {[%clk 0:02:43]}  Qa5 {[%clk 0:02:10]} 16. Kb1 {[%clk 0:02:41]}  O-O-O {[%clk 0:02:00]} 17. e5 {[%clk 0:02:37]}  d5 {[%clk 0:01:59]} 18. Rhf1 {[%clk 0:02:32]}  Rhf8 {[%clk 0:01:57]} 19. Ne2 {[%clk 0:02:17]}  Nb6 {[%clk 0:01:54]} 20. Nc1 {[%clk 0:02:17]}  Nc4 {[%clk 0:01:52]} 21. Nb3 {[%clk 0:02:12]}  Qb6 {[%clk 0:01:48]} 22. Rf3 {[%clk 0:02:11]}  a5 {[%clk 0:01:45]} 23. Nc5 {[%clk 0:02:10]}  Qxb2# {[%clk 0:01:43]} 0-1


[Site "https://www.chess.com"]

[Event "Titled Tuesday Blitz April 05 Early 2022"]
[White "Dukic, Zachary"]
[Black "Melikhov, Evgeny V."]
[WhiteFideId "2617188"]
[BlackFideId "4122046"]
[WhiteElo "2086"]
[BlackElo "1931"]
[Result "0-1"]
[Round "07"]
[TimeControl "180+1"]
[Date "2022.04.05"]
[WhiteClock "0:00:05"]
[BlackClock "0:00:18"]

1. e4 {[%clk 0:03:00]}  e5 {[%clk 0:02:59]} 2. Nf3 {[%clk 0:03:00]}  Nc6 {[%clk 0:02:59]} 3. d4 {[%clk 0:03:00]}  exd4 {[%clk 0:02:58]} 4. Nxd4 {[%clk 0:03:01]}  Bc5 {[%clk 0:02:58]} 5. Nxc6 {[%clk 0:02:59]}  Qf6 {[%clk 0:02:57]} 6. Qf3 {[%clk 0:02:59]}  Qxf3 {[%clk 0:02:56]} 7. gxf3 {[%clk 0:03:00]}  bxc6 {[%clk 0:02:56]} 8. Be3 {[%clk 0:02:58]}  Bxe3 {[%clk 0:02:53]} 9. fxe3 {[%clk 0:02:59]}  d5 {[%clk 0:02:51]} 10. exd5 {[%clk 0:02:37]}  cxd5 {[%clk 0:02:51]} 11. Bb5+ {[%clk 0:02:37]}  Bd7 {[%clk 0:02:50]} 12. Bxd7+ {[%clk 0:02:37]}  Kxd7 {[%clk 0:02:50]} 13. Nd2 {[%clk 0:02:38]}  Nf6 {[%clk 0:02:46]} 14. Nb3 {[%clk 0:02:36]}  Rhe8 {[%clk 0:02:39]} 15. Kf2 {[%clk 0:02:36]}  a5 {[%clk 0:02:17]} 16. Rhg1 {[%clk 0:02:24]}  g6 {[%clk 0:02:13]} 17. a4 {[%clk 0:02:18]}  Kd6 {[%clk 0:02:03]} 18. Nd4 {[%clk 0:02:14]}  c6 {[%clk 0:02:00]} 19. Rgd1 {[%clk 0:02:02]}  Rab8 {[%clk 0:01:53]} 20. b3 {[%clk 0:01:51]}  Nd7 {[%clk 0:01:50]} 21. Rac1 {[%clk 0:01:11]}  Nc5 {[%clk 0:01:46]} 22. Ne2 {[%clk 0:00:40]}  f5 {[%clk 0:01:36]} 23. h4 {[%clk 0:00:24]}  Re7 {[%clk 0:01:34]} 24. Nf4 {[%clk 0:00:23]}  Rbe8 {[%clk 0:01:31]} 25. Re1 {[%clk 0:00:23]}  Ne6 {[%clk 0:01:24]} 26. Nd3 {[%clk 0:00:16]}  h6 {[%clk 0:01:19]} 27. Rg1 {[%clk 0:00:15]}  g5 {[%clk 0:01:19]} 28. Rce1 {[%clk 0:00:09]}  Rg7 {[%clk 0:01:14]} 29. hxg5 {[%clk 0:00:07]}  hxg5 {[%clk 0:01:14]} 30. Rh1 {[%clk 0:00:08]}  g4 {[%clk 0:01:12]} 31. Rh6 {[%clk 0:00:07]}  Kc7 {[%clk 0:00:51]} 32. fxg4 {[%clk 0:00:05]}  fxg4 {[%clk 0:00:51]} 33. Kg3 {[%clk 0:00:04]}  Ng5 {[%clk 0:00:50]} 34. Nf4 {[%clk 0:00:01]}  Ne4+ {[%clk 0:00:49]} 35. Kg2 {[%clk 0:00:02]}  Rgg8 {[%clk 0:00:39]} 36. Reh1 {[%clk 0:00:01]}  Nc3 {[%clk 0:00:31]} 37. Rh7+ {[%clk 0:00:02]}  Kb6 {[%clk 0:00:30]} 38. Rf7 {[%clk 0:00:02]}  Rxe3 {[%clk 0:00:30]} 39. Rhh7 {[%clk 0:00:01]}  Kc5 {[%clk 0:00:26]} 40. Re7 {[%clk 0:00:01]}  Rxe7 {[%clk 0:00:26]} 41. Rxe7 {[%clk 0:00:02]}  Rf8 {[%clk 0:00:24]} 42. Kg3 {[%clk 0:00:03]}  Rg8 {[%clk 0:00:20]} 43. Re3 {[%clk 0:00:03]}  Ne4+ {[%clk 0:00:20]} 44. Kg2 {[%clk 0:00:03]}  g3 {[%clk 0:00:19]} 45. Re1 {[%clk 0:00:04]}  Kd4 {[%clk 0:00:19]} 46. Ne6+ {[%clk 0:00:04]}  Kc3 {[%clk 0:00:18]} 47. Nf4 {[%clk 0:00:03]}  Kxc2 {[%clk 0:00:18]} 48. b4 {[%clk 0:00:03]}  axb4 {[%clk 0:00:18]} 49. a5 {[%clk 0:00:04]}  Ra8 {[%clk 0:00:17]} 50. a6 {[%clk 0:00:05]}  Rxa6 {[%clk 0:00:18]} 0-1


[Site "https://www.chess.com"]

[Event "Titled Tuesday Blitz April 05 Early 2022"]
[White "Fernandez Siles, Luis"]
[Black "Baker, Chris W"]
[WhiteFideId "2209420"]
[BlackFideId "401676"]
[WhiteElo "2212"]
[BlackElo "2144"]
[Result "1-0"]
[Round "07"]
[TimeControl "180+1"]
[Date "2022.04.05"]
[WhiteClock "0:00:18"]
[BlackClock "0:01:23"]

1. e4 {[%clk 0:03:00]}  e5 {[%clk 0:02:57]} 2. Nf3 {[%clk 0:03:00]}  Nc6 {[%clk 0:02:57]} 3. Bc4 {[%clk 0:03:00]}  Bc5 {[%clk 0:02:56]} 4. O-O {[%clk 0:02:59]}  Nf6 {[%clk 0:02:55]} 5. d4 {[%clk 0:02:59]}  Bxd4 {[%clk 0:02:54]} 6. Nxd4 {[%clk 0:02:58]}  Nxd4 {[%clk 0:02:53]} 7. Bg5 {[%clk 0:02:58]}  h6 {[%clk 0:02:45]} 8. Bh4 {[%clk 0:02:57]}  d6 {[%clk 0:02:43]} 9. f4 {[%clk 0:02:52]}  Bg4 {[%clk 0:02:39]} 10. Bxf6 {[%clk 0:02:08]}  Bxd1 {[%clk 0:02:38]} 11. Bxd8 {[%clk 0:02:08]}  Rxd8 {[%clk 0:02:35]} 12. Rxd1 {[%clk 0:01:59]}  Nxc2 {[%clk 0:02:34]} 13. Nc3 {[%clk 0:01:41]}  Nxa1 {[%clk 0:02:32]} 14. Rxa1 {[%clk 0:01:42]}  c6 {[%clk 0:02:27]} 15. fxe5 {[%clk 0:01:26]}  dxe5 {[%clk 0:02:26]} 16. Re1 {[%clk 0:01:26]}  Ke7 {[%clk 0:02:24]} 17. Kf2 {[%clk 0:01:25]}  Rd2+ {[%clk 0:02:23]} 18. Re2 {[%clk 0:01:25]}  Rhd8 {[%clk 0:02:23]} 19. Ke3 {[%clk 0:01:17]}  Rxe2+ {[%clk 0:02:21]} 20. Nxe2 {[%clk 0:01:12]}  Rd1 {[%clk 0:02:17]} 21. Ng3 {[%clk 0:01:07]}  g6 {[%clk 0:02:16]} 22. a4 {[%clk 0:00:55]}  Rg1 {[%clk 0:02:12]} 23. Kf3 {[%clk 0:00:50]}  Rb1 {[%clk 0:02:10]} 24. b3 {[%clk 0:00:51]}  b6 {[%clk 0:02:07]} 25. Ne2 {[%clk 0:00:41]}  a6 {[%clk 0:02:00]} 26. Nc3 {[%clk 0:00:38]}  Rb2 {[%clk 0:01:57]} 27. Nd1 {[%clk 0:00:36]}  Rd2 {[%clk 0:01:49]} 28. Be2 {[%clk 0:00:35]}  b5 {[%clk 0:01:46]} 29. axb5 {[%clk 0:00:31]}  axb5 {[%clk 0:01:43]} 30. Ke3 {[%clk 0:00:30]}  Ra2 {[%clk 0:01:41]} 31. h3 {[%clk 0:00:23]}  Kd6 {[%clk 0:01:38]} 32. Kd3 {[%clk 0:00:23]}  Kc5 {[%clk 0:01:32]} 33. Nc3 {[%clk 0:00:22]}  Ra1 {[%clk 0:01:29]} 34. Kc2 {[%clk 0:00:19]}  Rg1 {[%clk 0:01:25]} 35. Bf3 {[%clk 0:00:18]}  Kd4 {[%clk 0:01:23]} 36. Ne2+ {[%clk 0:00:18]} 1-0


[Site "https://www.chess.com"]

[Event "Titled Tuesday Blitz April 05 Early 2022"]
[White "Fikiet, Alex"]
[Black "Kokoszczynski, Jan"]
[WhiteFideId "2052717"]
[BlackFideId "1174460"]
[WhiteElo "2443"]
[BlackElo "2163"]
[Result "1-0"]
[Round "07"]
[TimeControl "180+1"]
[Date "2022.04.05"]
[WhiteClock "0:00:40"]
[BlackClock "0:00:53"]

1. e4 {[%clk 0:03:00]}  e5 {[%clk 0:02:59]} 2. Nf3 {[%clk 0:03:00]}  Nc6 {[%clk 0:02:59]} 3. Nc3 {[%clk 0:02:59]}  Nf6 {[%clk 0:02:58]} 4. a3 {[%clk 0:02:59]}  d6 {[%clk 0:02:43]} 5. d4 {[%clk 0:02:58]}  exd4 {[%clk 0:02:43]} 6. Nxd4 {[%clk 0:02:57]}  Be7 {[%clk 0:02:43]} 7. Bc4 {[%clk 0:02:50]}  O-O {[%clk 0:02:39]} 8. h3 {[%clk 0:02:49]}  Nxd4 {[%clk 0:02:39]} 9. Qxd4 {[%clk 0:02:49]}  Be6 {[%clk 0:02:40]} 10. Be3 {[%clk 0:02:37]}  Bxc4 {[%clk 0:02:20]} 11. Qxc4 {[%clk 0:02:37]}  Qd7 {[%clk 0:02:19]} 12. O-O {[%clk 0:02:30]}  Rfe8 {[%clk 0:02:18]} 13. Rad1 {[%clk 0:02:29]}  h6 {[%clk 0:02:07]} 14. f4 {[%clk 0:02:14]}  Qc6 {[%clk 0:01:54]} 15. Qxc6 {[%clk 0:02:07]}  bxc6 {[%clk 0:01:55]} 16. Kf2 {[%clk 0:01:58]}  Bf8 {[%clk 0:01:49]} 17. Kf3 {[%clk 0:01:57]}  a6 {[%clk 0:01:42]} 18. Bd4 {[%clk 0:01:54]}  Nd7 {[%clk 0:01:39]} 19. Rfe1 {[%clk 0:01:53]}  Rab8 {[%clk 0:01:35]} 20. b3 {[%clk 0:01:53]}  g6 {[%clk 0:01:30]} 21. g4 {[%clk 0:01:48]}  Bg7 {[%clk 0:01:30]} 22. Bxg7 {[%clk 0:01:44]}  Kxg7 {[%clk 0:01:30]} 23. e5 {[%clk 0:01:40]}  d5 {[%clk 0:01:30]} 24. Ne2 {[%clk 0:01:32]}  Rb6 {[%clk 0:01:21]} 25. b4 {[%clk 0:01:27]}  Ra8 {[%clk 0:01:19]} 26. c4 {[%clk 0:01:21]}  a5 {[%clk 0:01:19]} 27. b5 {[%clk 0:01:14]}  cxb5 {[%clk 0:01:13]} 28. Rxd5 {[%clk 0:01:06]}  Nf8 {[%clk 0:01:13]} 29. cxb5 {[%clk 0:01:02]}  Rab8 {[%clk 0:01:11]} 30. Nd4 {[%clk 0:00:58]}  Ne6 {[%clk 0:00:59]} 31. Nxe6+ {[%clk 0:00:56]}  Rxe6 {[%clk 0:01:00]} 32. Rc1 {[%clk 0:00:53]}  Rb7 {[%clk 0:01:00]} 33. a4 {[%clk 0:00:52]}  Re7 {[%clk 0:00:57]} 34. Rc6 {[%clk 0:00:49]}  Ra7 {[%clk 0:00:56]} 35. f5 {[%clk 0:00:48]}  gxf5 {[%clk 0:00:56]} 36. gxf5 {[%clk 0:00:48]}  Re8 {[%clk 0:00:55]} 37. Kf4 {[%clk 0:00:44]}  Kf8 {[%clk 0:00:54]} 38. Rd7 {[%clk 0:00:44]}  Kg7 {[%clk 0:00:53]} 39. e6 {[%clk 0:00:40]} 1-0


[Site "https://www.chess.com"]

[Event "Titled Tuesday Blitz April 05 Early 2022"]
[White "Golubeva, Oksana"]
[Black "Miszler, Levente"]
[WhiteFideId "4170164"]
[BlackFideId "763276"]
[WhiteElo "2162"]
[BlackElo "1966"]
[Result "1-0"]
[Round "07"]
[TimeControl "180+1"]
[Date "2022.04.05"]
[WhiteClock "0:01:19"]
[BlackClock "0:00:06"]

1. Nf3 {[%clk 0:02:59]}  Nf6 {[%clk 0:02:59]} 2. e3 {[%clk 0:02:59]}  g6 {[%clk 0:02:58]} 3. c4 {[%clk 0:02:59]}  Bg7 {[%clk 0:02:58]} 4. Nc3 {[%clk 0:03:00]}  O-O {[%clk 0:02:58]} 5. d4 {[%clk 0:03:00]}  d6 {[%clk 0:02:59]} 6. b3 {[%clk 0:03:00]}  Nbd7 {[%clk 0:03:00]} 7. Bb2 {[%clk 0:03:00]}  c6 {[%clk 0:03:00]} 8. Be2 {[%clk 0:02:58]}  Qc7 {[%clk 0:03:01]} 9. O-O {[%clk 0:02:58]}  e5 {[%clk 0:03:01]} 10. dxe5 {[%clk 0:02:57]}  dxe5 {[%clk 0:03:02]} 11. Qc2 {[%clk 0:02:54]}  Nc5 {[%clk 0:03:01]} 12. e4 {[%clk 0:02:49]}  Rd8 {[%clk 0:02:55]} 13. Rad1 {[%clk 0:02:38]}  Be6 {[%clk 0:02:31]} 14. b4 {[%clk 0:02:19]}  Na6 {[%clk 0:02:06]} 15. a3 {[%clk 0:02:18]}  Nh5 {[%clk 0:01:52]} 16. g3 {[%clk 0:02:09]}  Bh3 {[%clk 0:01:44]} 17. Rfe1 {[%clk 0:02:09]}  Qe7 {[%clk 0:01:38]} 18. c5 {[%clk 0:02:01]}  Nc7 {[%clk 0:01:34]} 19. Nd2 {[%clk 0:01:55]}  Nf6 {[%clk 0:01:22]} 20. Nc4 {[%clk 0:01:54]}  Ne6 {[%clk 0:01:16]} 21. Nb1 {[%clk 0:01:51]}  Nd4 {[%clk 0:01:12]} 22. Bxd4 {[%clk 0:01:51]}  exd4 {[%clk 0:01:13]} 23. Nd6 {[%clk 0:01:51]}  Ne8 {[%clk 0:01:09]} 24. e5 {[%clk 0:01:33]}  Bxe5 {[%clk 0:00:46]} 25. Nc4 {[%clk 0:01:32]}  Bf5 {[%clk 0:00:39]} 26. Bd3 {[%clk 0:01:25]}  Bxd3 {[%clk 0:00:33]} 27. Qxd3 {[%clk 0:01:26]}  Rd5 {[%clk 0:00:17]} 28. f4 {[%clk 0:01:25]}  f6 {[%clk 0:00:18]} 29. fxe5 {[%clk 0:01:23]}  fxe5 {[%clk 0:00:18]} 30. Nbd2 {[%clk 0:01:22]}  Nf6 {[%clk 0:00:18]} 31. Ne4 {[%clk 0:01:23]}  Nxe4 {[%clk 0:00:18]} 32. Rxe4 {[%clk 0:01:23]}  Rf8 {[%clk 0:00:16]} 33. Rde1 {[%clk 0:01:23]}  Rf5 {[%clk 0:00:15]} 34. Qe2 {[%clk 0:01:23]}  d3 {[%clk 0:00:13]} 35. Qd2 {[%clk 0:01:21]}  Qf6 {[%clk 0:00:11]} 36. Ne3 {[%clk 0:01:21]}  Rf3 {[%clk 0:00:05]} 37. Nxd5 {[%clk 0:01:19]}  cxd5 {[%clk 0:00:06]} 38. Rxe5 {[%clk 0:01:19]} 1-0


[Site "https://www.chess.com"]

[Event "Titled Tuesday Blitz April 05 Early 2022"]
[White "Gracia Alvarez, Gerardo Antonio"]
[Black "Piesik, Piotr"]
[WhiteFideId "5109124"]
[BlackFideId "1136194"]
[WhiteElo "2139"]
[BlackElo "2190"]
[Result "1-0"]
[Round "07"]
[TimeControl "180+1"]
[Date "2022.04.05"]
[WhiteClock "0:02:04"]
[BlackClock "0:02:15"]

1. e4 {[%clk 0:03:00]}  g6 {[%clk 0:03:00]} 2. d4 {[%clk 0:03:00]}  Bg7 {[%clk 0:03:00]} 3. Nf3 {[%clk 0:02:57]}  c6 {[%clk 0:03:00]} 4. Nc3 {[%clk 0:02:55]}  d6 {[%clk 0:03:00]} 5. Be2 {[%clk 0:02:53]}  Nf6 {[%clk 0:03:00]} 6. O-O {[%clk 0:02:53]}  O-O {[%clk 0:03:00]} 7. Re1 {[%clk 0:02:53]}  Bg4 {[%clk 0:02:59]} 8. h3 {[%clk 0:02:51]}  Bxf3 {[%clk 0:02:59]} 9. Bxf3 {[%clk 0:02:52]}  Nbd7 {[%clk 0:03:00]} 10. Be3 {[%clk 0:02:48]}  e5 {[%clk 0:03:00]} 11. Qd2 {[%clk 0:02:48]}  Qe7 {[%clk 0:02:59]} 12. Rad1 {[%clk 0:02:48]}  Nb6 {[%clk 0:02:55]} 13. b3 {[%clk 0:02:47]}  Rad8 {[%clk 0:02:53]} 14. Bg5 {[%clk 0:02:45]}  Rfe8 {[%clk 0:02:39]} 15. a4 {[%clk 0:02:42]}  Nbd7 {[%clk 0:02:38]} 16. d5 {[%clk 0:02:24]}  Nc5 {[%clk 0:02:30]} 17. b4 {[%clk 0:02:20]}  Na6 {[%clk 0:02:28]} 18. dxc6 {[%clk 0:02:18]}  bxc6 {[%clk 0:02:28]} 19. b5 {[%clk 0:02:18]}  cxb5 {[%clk 0:02:22]} 20. Nd5 {[%clk 0:02:12]}  Qe6 {[%clk 0:02:22]} 21. Bxf6 {[%clk 0:02:05]}  Bxf6 {[%clk 0:02:15]} 22. Bg4 {[%clk 0:02:04]} 1-0


[Site "https://www.chess.com"]